fUSD/lending_fUSD_20260611
["ID","MTS","AMOUNT","RATE_DAILY","PERIOD"]
[424777362,1781154645000,-590.87761928,0.000149,2]
[424777357,1781154645000,-25000.0,0.00014891,3]
[424777364,1781154645000,-659.41051773,0.000149,2]
[424777320,1781154645000,-218.44302289,0.00014699,2]
[424777337,1781154645000,-218.44302289,0.0001479,2]
[424777335,1781154645000,-659.41051774,0.0001478,2]
[424777352,1781154645000,-10000.0,0.00014865,2]
[424777338,1781154645000,-152.0,0.0001479,2]
[424777308,1781154645000,-151.0,0.0001463,2]
[424777342,1781154645000,-218.44302289,0.0001482,2]
[424777310,1781154645000,-218.44302289,0.00014638,2]
[424777319,1781154645000,-150.0,0.00014687,2]
[424777312,1781154645000,-218.44302289,0.00014653,2]
[424777313,1781154645000,-736.0,0.00014656,2]
[424777314,1781154645000,-150.0,0.00014661,2]
[424777317,1781154645000,-218.44302289,0.00014684,2]
[424777316,1781154645000,-218.44302289,0.00014668,2]
[424777318,1781154645000,-150.0,0.00014687,2]
[424777322,1781154645000,-218.44302289,0.00014714,2]
[424777323,1781154645000,-150.0,0.00014726,2]
[424777321,1781154645000,-150.0,0.00014703,2]
[424777315,1781154645000,-150.0,0.00014662,2]
[424777332,1781154645000,-150.0,0.00014762,2]
[424777325,1781154645000,-150.0,0.00014729,2]
[424777343,1781154645000,-150.0,0.00014824,2]
[424777333,1781154645000,-150.0,0.00014772,2]
[424777334,1781154645000,-218.44302289,0.00014774,2]
[424777329,1781154645000,-218.44302289,0.00014744,2]
[424777331,1781154645000,-218.44302289,0.00014759,2]
[424777328,1781154645000,-150.0,0.00014743,2]
[424777330,1781154645000,-167.49,0.00014753,2]
[424777324,1781154645000,-218.44302289,0.00014729,2]
[424777327,1781154645000,-944.39,0.00014737,2]
[424777326,1781154645000,-150.0,0.00014737,2]
[424777405,1781154646000,-500.0,0.00014999,2]
[424777409,1781154646000,-500.0,0.00014999,2]
[424777403,1781154646000,-500.0,0.00014999,2]
[424777401,1781154646000,-500.0,0.00014999,2]
[424777400,1781154646000,-500.0,0.00014999,2]
[424777390,1781154646000,-150.0,0.00014986,2]
[424777398,1781154646000,-500.0,0.00014999,2]
[424777396,1781154646000,-500.0,0.00014999,2]
[424777393,1781154646000,-500.0,0.00014999,2]
[424777402,1781154646000,-500.0,0.00014999,2]
[424777395,1781154646000,-500.0,0.00014999,2]
[424777407,1781154646000,-388.95,0.00014999,2]
[424777418,1781154646000,-500.0,0.00014999,2]
[424777408,1781154646000,-500.0,0.00014999,2]
[424777410,1781154646000,-500.0,0.00014999,2]
[424777411,1781154646000,-500.0,0.00014999,2]
[424777404,1781154646000,-500.0,0.00014999,2]
[424777413,1781154646000,-500.0,0.00014999,2]
[424777412,1781154646000,-500.0,0.00014999,2]
[424777414,1781154646000,-500.0,0.00014999,2]
[424777415,1781154646000,-500.0,0.00014999,2]
[424777416,1781154646000,-500.0,0.00014999,2]
[424777417,1781154646000,-500.0,0.00014999,2]
[424777421,1781154646000,-500.0,0.00014999,2]
[424777397,1781154646000,-500.0,0.00014999,2]
[424777406,1781154646000,-500.0,0.00014999,2]
[424777394,1781154646000,-500.0,0.00014999,2]
[424777367,1781154646000,-150.0,0.00014901,2]
[424777388,1781154646000,-150.0,0.00014986,2]
[424777365,1781154646000,-20036.23823755,0.000149,2]
[424777420,1781154646000,-500.0,0.00014999,2]
[424777366,1781154646000,-452.72091935,0.000149,2]
[424777369,1781154646000,-291.64660163,0.00014908,2]
[424777368,1781154646000,-150.0,0.00014905,2]
[424777370,1781154646000,-218.44302289,0.00014911,2]
[424777371,1781154646000,-150.0,0.00014911,2]
[424777374,1781154646000,-218.44302289,0.00014926,2]
[424777373,1781154646000,-150.0,0.00014921,2]
[424777376,1781154646000,-218.44302289,0.00014941,2]
[424777375,1781154646000,-1500.0,0.00014927,2]
[424777372,1781154646000,-237.65392,0.00014917,2]
[424777392,1781154646000,-210.539791,0.00014992,2]
[424777379,1781154646000,-218.44302289,0.00014956,2]
[424777381,1781154646000,-150.0,0.00014986,2]
[424777386,1781154646000,-259.62247991,0.00014986,2]
[424777382,1781154646000,-150.0,0.00014986,2]
[424777387,1781154646000,-150.0,0.00014986,2]
[424777380,1781154646000,-218.44302289,0.00014971,2]
[424777378,1781154646000,-150.0,0.00014946,2]
[424777377,1781154646000,-150.0,0.00014943,2]
[424777385,1781154646000,-150.0,0.00014986,2]
[424777383,1781154646000,-150.0,0.00014986,2]
[424777389,1781154646000,-218.44302289,0.00014986,2]
[424777391,1781154646000,-2000.0,0.0001499,2]
[424777399,1781154646000,-492.8427843,0.00014999,2]
[424777384,1781154646000,-150.0,0.00014986,2]
[424777419,1781154646000,-500.0,0.00014999,2]
[424777429,1781154646000,-500.0,0.00014999,2]
[424777422,1781154646000,-500.0,0.00014999,2]
[424777452,1781154646000,-500.0,0.00014999,2]
[424777451,1781154646000,-500.0,0.00014999,2]
[424777459,1781154646000,-500.0,0.00014999,2]
[424777468,1781154646000,-785.74,0.00014999,2]
[424777469,1781154646000,-785.74,0.00014999,2]
[424777458,1781154646000,-500.0,0.00014999,2]
[424777460,1781154646000,-500.0,0.00014999,2]
[424777461,1781154646000,-500.0,0.00014999,2]
[424777457,1781154646000,-500.0,0.00014999,2]
[424777462,1781154646000,-500.0,0.00014999,2]
[424777463,1781154646000,-500.0,0.00014999,2]
[424777465,1781154646000,-500.0,0.00014999,2]
[424777464,1781154646000,-171.51496798,0.00014999,2]
[424777467,1781154646000,-785.74,0.00014999,2]
[424777466,1781154646000,-500.0,0.00014999,2]
[424777471,1781154646000,-785.74,0.00014999,2]
[424777472,1781154646000,-785.74,0.00014999,2]
[424777473,1781154646000,-785.74,0.00014999,2]
[424777423,1781154646000,-500.0,0.00014999,2]
[424777474,1781154646000,-785.74,0.00014999,2]
[424777475,1781154646000,-785.74,0.00014999,2]
[424777476,1781154646000,-785.74,0.00014999,2]
[424777477,1781154646000,-785.74,0.00014999,2]
[424777478,1781154646000,-785.74,0.00014999,2]
[424777479,1781154646000,-785.80614846,0.00014999,2]
[424777453,1781154646000,-500.0,0.00014999,2]
[424777449,1781154646000,-500.0,0.00014999,2]
[424777470,1781154646000,-785.74,0.00014999,2]
[424777454,1781154646000,-500.0,0.00014999,2]
[424777450,1781154646000,-500.0,0.00014999,2]
[424777424,1781154646000,-500.0,0.00014999,2]
[424777425,1781154646000,-500.0,0.00014999,2]
[424777426,1781154646000,-500.0,0.00014999,2]
[424777432,1781154646000,-500.0,0.00014999,2]
[424777427,1781154646000,-500.0,0.00014999,2]
[424777430,1781154646000,-500.0,0.00014999,2]
[424777431,1781154646000,-500.0,0.00014999,2]
[424777433,1781154646000,-500.0,0.00014999,2]
[424777441,1781154646000,-500.0,0.00014999,2]
[424777444,1781154646000,-500.0,0.00014999,2]
[424777435,1781154646000,-500.0,0.00014999,2]
[424777438,1781154646000,-500.0,0.00014999,2]
[424777428,1781154646000,-500.0,0.00014999,2]
[424777442,1781154646000,-500.0,0.00014999,2]
[424777437,1781154646000,-500.0,0.00014999,2]
[424777448,1781154646000,-500.0,0.00014999,2]
[424777447,1781154646000,-500.0,0.00014999,2]
[424777456,1781154646000,-500.0,0.00014999,2]
[424777446,1781154646000,-500.0,0.00014999,2]
[424777445,1781154646000,-500.0,0.00014999,2]
[424777436,1781154646000,-500.0,0.00014999,2]
[424777443,1781154646000,-500.0,0.00014999,2]
[424777439,1781154646000,-500.0,0.00014999,2]
[424777434,1781154646000,-500.0,0.00014999,2]
[424777440,1781154646000,-500.0,0.00014999,2]
[424777455,1781154646000,-500.0,0.00014999,2]
[424777487,1781154647000,-1133.92,0.00014999,2]
[424777484,1781154647000,-1133.92,0.00014999,2]
[424777491,1781154647000,-1133.92,0.00014999,2]
[424777488,1781154647000,-1133.92,0.00014999,2]
[424777490,1781154647000,-1133.92,0.00014999,2]
[424777495,1781154647000,-666.0,0.00014999,2]
[424777482,1781154647000,-1133.92,0.00014999,2]
[424777489,1781154647000,-1133.92,0.00014999,2]
[424777485,1781154647000,-1133.92,0.00014999,2]
[424777481,1781154647000,-1133.92,0.00014999,2]
[424777483,1781154647000,-1133.92,0.00014999,2]
[424777480,1781154647000,-1133.92,0.00014999,2]
[424777498,1781154647000,-300.0,0.00014999,2]
[424777486,1781154647000,-1133.92,0.00014999,2]
[424777494,1781154647000,-300.0,0.00014999,2]
[424777506,1781154647000,-3000.0,0.00015,2]
[424777492,1781154647000,-1133.92,0.00014999,2]
[424777511,1781154647000,-5462039.84359478,0.00015,2]
[424777508,1781154647000,-1517.87,0.00015,2]
[424777493,1781154647000,-300.0,0.00014999,2]
[424777507,1781154647000,-642.89,0.00015,2]
[424777509,1781154647000,-150.0,0.00015,2]
[424777502,1781154647000,-1448.37972423,0.00015,2]
[424777504,1781154647000,-1556.78,0.00015,2]
[424777510,1781154647000,-400.0,0.00015,2]
[424777503,1781154647000,-2000.0,0.00015,2]
[424777500,1781154647000,-300.0,0.00014999,2]
[424777496,1781154647000,-300.0,0.00014999,2]
[424777497,1781154647000,-300.0,0.00014999,2]
[424777501,1781154647000,-300.0,0.00014999,2]
[424777499,1781154647000,-666.0,0.00014999,2]
[424777505,1781154647000,-1481.99,0.00015,2]
[424777519,1781154648000,-167.7233281,0.00013699,2]
[424777517,1781154648000,-500.0,0.00013699,2]
[424777520,1781154648000,-222.75903555,0.00015,2]
[424777518,1781154648000,-500.0,0.00013699,2]
[424777514,1781154648000,-500.0,0.00013699,2]
[424777515,1781154648000,-159.63640365,0.00013699,2]
[424777513,1781154648000,-841.23615571,0.00015,2]
[424777512,1781154648000,-385.06472851,0.00015,2]
[424777516,1781154648000,-340.36359635,0.00013699,2]
[424777522,1781154648000,-500.0,0.00013699,2]
[424777524,1781154648000,-500.0,0.00013699,2]
[424777525,1781154648000,-1133.92,0.00014999,2]
[424777521,1781154648000,-500.0,0.00013699,2]
[424777531,1781154648000,-500.0,0.00013699,2]
[424777530,1781154648000,-500.0,0.00013699,2]
[424777529,1781154648000,-179.04986631,0.00013699,2]
[424777532,1781154648000,-2144.03002088,0.00015,2]
[424777527,1781154648000,-151.0,0.00010402,2]
[424777526,1781154648000,-11582.72192101,0.00015,2]
[424777523,1781154648000,-500.0,0.00013699,2]
[424777528,1781154648000,-320.95013369,0.00013699,2]
[424777538,1781154649000,-828.65456762,0.00015,2]
[424777537,1781154649000,-297.05242857,0.00015,2]
[424777535,1781154649000,-1134.11,0.00014999,2]
[424777536,1781154649000,-733252.89777886,0.00015,2]
[424777534,1781154649000,-500.0,0.00013699,2]
[424777533,1781154649000,-215.95576085,0.00011271,2]
[424777540,1781154650000,-335.819307,0.00015,2]
[424777541,1781154650000,-1068.26609637,0.00015,2]
[424777539,1781154650000,-9639.91819722,0.00015,2]
[424777543,1781154650000,-7210.94929694,0.00015,2]
[424777545,1781154650000,-1203.05224665,0.00015,2]
[424777544,1781154650000,-3806.93776849,0.00015,2]
[424777542,1781154650000,-1219.89093319,0.00015,2]
[424777560,1781155831000,-716.98398991,0.00010086,2]
[424777558,1781155831000,-579.45,0.00010037,2]
[424777559,1781155831000,-200.0,0.00010081,2]
[424777557,1781155831000,-494.53712079,0.0001003,2]
[424777555,1781155831000,-150.0,9.832e-05,2]
[424777556,1781155831000,-167.49,0.00010003,2]
[424777554,1781155831000,-200.0,9.662e-05,2]
[424777588,1781155832000,-1475.48601009,0.00010086,2]
[424777590,1781155832000,-1026.97,0.00010204,2]
[424777589,1781155832000,-494.8,0.00010135,2]
[424777596,1781155833000,-4600.0,0.000109,3]
[424777592,1781155833000,-2434.22,0.00010434,2]
[424777595,1781155833000,-7347.79,0.000109,2]
[424777591,1781155833000,-1119.31,0.0001034,2]
[424777593,1781155833000,-2046.78,0.00010485,2]
[424777597,1781155833000,-9706.21615492,0.000109,2]
[424777594,1781155833000,-2300.0,0.000108,3]
[424777599,1781155833000,-250.0,0.00010954,2]
[424777604,1781155833000,-500.0,0.00010954,2]
[424777598,1781155833000,-150.0,0.00010953,2]
[424777601,1781155833000,-500.0,0.00010954,2]
[424777602,1781155833000,-500.0,0.00010954,2]
[424777605,1781155833000,-500.0,0.00010954,2]
[424777606,1781155833000,-500.0,0.00010954,2]
[424777607,1781155833000,-500.0,0.00010954,2]
[424777608,1781155833000,-352.65928729,0.00010954,2]
[424777600,1781155833000,-2000.0,0.00010954,2]
[424777603,1781155833000,-500.0,0.00010954,2]
[424777653,1781155838000,-500.0,0.00010954,2]
[424777651,1781155838000,-500.0,0.00010954,2]
[424777650,1781155838000,-500.0,0.00010954,2]
[424777648,1781155838000,-500.0,0.00010954,2]
[424777645,1781155838000,-500.0,0.00010954,2]
[424777647,1781155838000,-500.0,0.00010954,2]
[424777652,1781155838000,-500.0,0.00010954,2]
[424777646,1781155838000,-309.34520702,0.00010954,2]
[424777644,1781155838000,-500.0,0.00010954,2]
[424777649,1781155838000,-500.0,0.00010954,2]
[424777654,1781155838000,-224.96651051,0.00010954,2]
[424777658,1781155838000,-500.0,0.00010954,2]
[424777655,1781155838000,-275.03348949,0.00010954,2]
[424777657,1781155838000,-500.0,0.00010954,2]
[424777659,1781155838000,-500.0,0.00010954,2]
[424777664,1781155838000,-500.0,0.00010954,2]
[424777661,1781155838000,-500.0,0.00010954,2]
[424777660,1781155838000,-500.0,0.00010954,2]
[424777662,1781155838000,-500.0,0.00010954,2]
[424777663,1781155838000,-500.0,0.00010954,2]
[424777666,1781155838000,-500.0,0.00010954,2]
[424777665,1781155838000,-500.0,0.00010954,2]
[424777643,1781155838000,-500.0,0.00010954,2]
[424777656,1781155838000,-500.0,0.00010954,2]
[424777642,1781155838000,-500.0,0.00010954,2]
[424777612,1781155838000,-293.76711625,0.00010945,2]
[424777640,1781155838000,-500.0,0.00010954,2]
[424777613,1781155838000,-147.34071271,0.00010954,2]
[424777668,1781155838000,-251.45186696,0.00010954,2]
[424777614,1781155838000,-500.0,0.00010954,2]
[424777618,1781155838000,-319.51993472,0.00010954,2]
[424777621,1781155838000,-500.0,0.00010954,2]
[424777620,1781155838000,-180.48006528,0.00010954,2]
[424777623,1781155838000,-175.64631691,0.00010954,2]
[424777622,1781155838000,-500.0,0.00010954,2]
[424777624,1781155838000,-500.0,0.00010954,2]
[424777626,1781155838000,-500.0,0.00010954,2]
[424777625,1781155838000,-500.0,0.00010954,2]
[424777641,1781155838000,-500.0,0.00010954,2]
[424777627,1781155838000,-500.0,0.00010954,2]
[424777629,1781155838000,-500.0,0.00010954,2]
[424777632,1781155838000,-500.0,0.00010954,2]
[424777628,1781155838000,-500.0,0.00010954,2]
[424777630,1781155838000,-162.8957385,0.00010954,2]
[424777633,1781155838000,-500.0,0.00010954,2]
[424777634,1781155838000,-500.0,0.00010954,2]
[424777637,1781155838000,-500.0,0.00010954,2]
[424777636,1781155838000,-500.0,0.00010954,2]
[424777635,1781155838000,-500.0,0.00010954,2]
[424777639,1781155838000,-500.0,0.00010954,2]
[424777638,1781155838000,-500.0,0.00010954,2]
[424777631,1781155838000,-500.0,0.00010954,2]
[424777667,1781155838000,-500.0,0.00010954,2]
[424777616,1781155838000,-500.0,0.00010954,2]
[424777669,1781155838000,-500.0,0.00010954,2]
[424777709,1781155838000,-2187.3118,0.00010956,2]
[424777708,1781155838000,-1500000.0,0.00010955,2]
[424777707,1781155838000,-500.0,0.00010954,2]
[424777710,1781155838000,-192.204,0.00010956,2]
[424777711,1781155838000,-2708.406,0.00010956,2]
[424777713,1781155838000,-500.0,0.00010958,2]
[424777712,1781155838000,-500.0,0.00010958,2]
[424777717,1781155838000,-500.0,0.00010958,2]
[424777715,1781155838000,-500.0,0.00010958,2]
[424777714,1781155838000,-500.0,0.00010958,2]
[424777716,1781155838000,-500.0,0.00010958,2]
[424777718,1781155838000,-150.0,0.00010959,2]
[424777721,1781155838000,-171.10388604,0.00011001,2]
[424777719,1781155838000,-166.66,0.00010959,2]
[424777720,1781155838000,-613.32624721,0.00010977,2]
[424777722,1781155838000,-166.66,0.00011068,2]
[424777723,1781155838000,-215.95576085,0.00011084,2]
[424777724,1781155838000,-12164.52049634,0.00011099,2]
[424777725,1781155838000,-13157.50700333,0.00011099,2]
[424777729,1781155838000,-500.0,0.00011239,3]
[424777727,1781155838000,-166.66,0.00011178,2]
[424777728,1781155838000,-500.0,0.00011239,2]
[424777730,1781155838000,-500.0,0.00011239,2]
[424777706,1781155838000,-500.0,0.00010954,2]
[424777699,1781155838000,-500.0,0.00010954,2]
[424777726,1781155838000,-726.00772454,0.00011139,2]
[424777700,1781155838000,-500.0,0.00010954,2]
[424777702,1781155838000,-500.0,0.00010954,2]
[424777672,1781155838000,-500.0,0.00010954,2]
[424777673,1781155838000,-500.0,0.00010954,2]
[424777675,1781155838000,-500.0,0.00010954,2]
[424777671,1781155838000,-500.0,0.00010954,2]
[424777674,1781155838000,-500.0,0.00010954,2]
[424777676,1781155838000,-500.0,0.00010954,2]
[424777678,1781155838000,-500.0,0.00010954,2]
[424777677,1781155838000,-500.0,0.00010954,2]
[424777679,1781155838000,-500.0,0.00010954,2]
[424777680,1781155838000,-500.0,0.00010954,2]
[424777682,1781155838000,-500.0,0.00010954,2]
[424777670,1781155838000,-500.0,0.00010954,2]
[424777684,1781155838000,-500.0,0.00010954,2]
[424777681,1781155838000,-500.0,0.00010954,2]
[424777704,1781155838000,-500.0,0.00010954,2]
[424777705,1781155838000,-500.0,0.00010954,2]
[424777695,1781155838000,-500.0,0.00010954,2]
[424777696,1781155838000,-500.0,0.00010954,2]
[424777698,1781155838000,-500.0,0.00010954,2]
[424777694,1781155838000,-500.0,0.00010954,2]
[424777690,1781155838000,-500.0,0.00010954,2]
[424777686,1781155838000,-500.0,0.00010954,2]
[424777693,1781155838000,-500.0,0.00010954,2]
[424777688,1781155838000,-500.0,0.00010954,2]
[424777697,1781155838000,-200.0,0.00010954,2]
[424777766,1781155839000,-164.57,0.0001277,2]
[424777759,1781155839000,-213.66695751,0.00012328,2]
[424777763,1781155839000,-13157.50700331,0.00012716,2]
[424777760,1781155839000,-161.98,0.00012349,2]
[424777762,1781155839000,-9706.21615487,0.00012589,2]
[424777765,1781155839000,-1026.97,0.00012755,2]
[424777761,1781155839000,-726.0077245,0.00012393,2]
[424777764,1781155839000,-12164.52049628,0.00012716,2]
[424777758,1781155839000,-363.52374984,0.00012328,2]
[424777770,1781155839000,-726.0077245,0.0001302,2]
[424777768,1781155839000,-1119.31,0.00012924,2]
[424777769,1781155839000,-613.32624719,0.00012939,2]
[424777771,1781155839000,-500.0,0.00013096,2]
[424777774,1781155839000,-12164.52049628,0.00013152,2]
[424777755,1781155839000,-13157.50700331,0.00012279,2]
[424777775,1781155839000,-9706.21615487,0.00013167,2]
[424777772,1781155839000,-433.0,0.00013132,2]
[424777773,1781155839000,-13157.50700331,0.00013152,2]
[424777776,1781155839000,-161.98,0.0001329,2]
[424777777,1781155839000,-216.030113,0.00013318,2]
[424777778,1781155839000,-204.111139,0.00013318,2]
[424777767,1781155839000,-150.99,0.00012893,2]
[424777754,1781155839000,-500.0,0.00012278,2]
[424777753,1781155839000,-312.5039285,0.00012267,2]
[424777757,1781155839000,-500.0,0.00012299,9]
[424777779,1781155839000,-182.059254,0.00013318,2]
[424777732,1781155839000,-500.0,0.00011239,4]
[424777733,1781155839000,-500.0,0.00011239,5]
[424777731,1781155839000,-500.0,0.00011239,3]
[424777734,1781155839000,-500.0,0.00011239,6]
[424777735,1781155839000,-500.0,0.00011239,7]
[424777736,1781155839000,-500.0,0.00011239,8]
[424777738,1781155839000,-166.66,0.00011397,2]
[424777737,1781155839000,-166.66,0.00011288,2]
[424777740,1781155839000,-12164.52049628,0.00011405,2]
[424777756,1781155839000,-12164.52049628,0.00012279,2]
[424777741,1781155839000,-161.98,0.00011408,2]
[424777745,1781155839000,-164.57,0.0001161,2]
[424777744,1781155839000,-166.66,0.00011507,2]
[424777743,1781155839000,-1026.97,0.00011479,2]
[424777746,1781155839000,-1119.31,0.00011632,2]
[424777749,1781155839000,-12164.52049628,0.00011842,2]
[424777748,1781155839000,-13157.50700331,0.00011842,2]
[424777752,1781155839000,-9706.21615487,0.00012011,2]
[424777750,1781155839000,-255.0,0.00011993,2]
[424777747,1781155839000,-726.0077245,0.00011766,2]
[424777751,1781155839000,-5369.0,0.00012,5]
[424777739,1781155839000,-13157.50700331,0.00011405,2]
[424777742,1781155839000,-9706.21615487,0.00011434,2]
[424777781,1781155839000,-234.685758,0.00013384,2]
[424777784,1781155839000,-150.0,0.00013488,2]
[424777809,1781155839000,-219.50287675,0.00013594,2]
[424777811,1781155839000,-219.50287675,0.00013609,2]
[424777810,1781155839000,-150.0,0.00013595,2]
[424777812,1781155839000,-150.0,0.00013616,2]
[424777814,1781155839000,-150.0,0.00013624,2]
[424777818,1781155839000,-726.0077245,0.00013646,2]
[424777815,1781155839000,-219.50287675,0.00013624,2]
[424777817,1781155839000,-500.0,0.00013644,10]
[424777816,1781155839000,-219.50287675,0.00013639,2]
[424777819,1781155839000,-150.0,0.00013648,2]
[424777803,1781155839000,-150.0,0.00013573,2]
[424777822,1781155839000,-150.0,0.00013658,2]
[424777821,1781155839000,-219.50287675,0.00013654,2]
[424777823,1781155839000,-150.0,0.00013659,2]
[424777826,1781155839000,-219.50287675,0.00013684,2]
[424777829,1781155839000,-500.0,0.00013698,2]
[424777828,1781155839000,-500.0,0.00013698,2]
[424777824,1781155839000,-150.0,0.00013664,2]
[424777827,1781155839000,-150.0,0.00013692,2]
[424777825,1781155839000,-219.50287675,0.00013669,2]
[424777830,1781155839000,-448.30889603,0.00013698,2]
[424777780,1781155839000,-278.476316,0.00013318,2]
[424777820,1781155839000,-150.0,0.00013654,2]
[424777808,1781155839000,-150.0,0.0001359,2]
[424777813,1781155839000,-150.0,0.0001362,2]
[424777807,1781155839000,-12164.52049628,0.00013589,2]
[424777785,1781155839000,-150.0,0.00013488,2]
[424777804,1781155839000,-150.0,0.00013576,2]
[424777782,1781155839000,-312.5039285,0.0001343,2]
[424777787,1781155839000,-150.0,0.00013488,2]
[424777783,1781155839000,-150.0,0.00013488,2]
[424777786,1781155839000,-150.0,0.00013488,2]
[424777788,1781155839000,-150.0,0.00013488,2]
[424777789,1781155839000,-150.0,0.00013488,2]
[424777791,1781155839000,-219.50287675,0.00013488,2]
[424777793,1781155839000,-219.50287675,0.00013503,2]
[424777794,1781155839000,-219.50287675,0.00013518,2]
[424777790,1781155839000,-150.0,0.00013488,2]
[424777795,1781155839000,-150.0,0.00013522,2]
[424777805,1781155839000,-219.50287675,0.00013578,2]
[424777792,1781155839000,-150.0,0.00013488,2]
[424777802,1781155839000,-219.50287675,0.00013563,2]
[424777798,1781155839000,-219.50287675,0.00013533,2]
[424777801,1781155839000,-150.0,0.00013556,2]
[424777806,1781155839000,-13157.50700331,0.00013589,2]
[424777800,1781155839000,-219.50287675,0.00013548,2]
[424777796,1781155839000,-150.0,0.0001353,2]
[424777797,1781155839000,-150.0,0.00013532,2]
[424777799,1781155839000,-150.0,0.00013541,2]
[424777868,1781155840000,-500.0,0.00013698,2]
[424777862,1781155840000,-500.0,0.00013698,2]
[424777859,1781155840000,-500.0,0.00013698,2]
[424777864,1781155840000,-500.0,0.00013698,2]
[424777866,1781155840000,-500.0,0.00013698,2]
[424777865,1781155840000,-500.0,0.00013698,2]
[424777867,1781155840000,-500.0,0.00013698,2]
[424777870,1781155840000,-500.0,0.00013698,2]
[424777874,1781155840000,-500.0,0.00013698,2]
[424777869,1781155840000,-500.0,0.00013698,2]
[424777872,1781155840000,-500.0,0.00013698,2]
[424777880,1781155840000,-533.65,0.00013698,2]
[424777871,1781155840000,-502.88764057,0.00013698,2]
[424777875,1781155840000,-533.65,0.00013698,2]
[424777877,1781155840000,-533.65,0.00013698,2]
[424777878,1781155840000,-533.65,0.00013698,2]
[424777876,1781155840000,-533.65,0.00013698,2]
[424777879,1781155840000,-533.65,0.00013698,2]
[424777882,1781155840000,-533.65,0.00013698,2]
[424777884,1781155840000,-500.0,0.00013698,2]
[424777883,1781155840000,-533.65,0.00013698,2]
[424777861,1781155840000,-500.0,0.00013698,2]
[424777873,1781155840000,-500.0,0.00013698,2]
[424777863,1781155840000,-500.0,0.00013698,2]
[424777831,1781155840000,-500.0,0.00013698,2]
[424777860,1781155840000,-500.0,0.00013698,2]
[424777833,1781155840000,-1689.27,0.00013698,2]
[424777832,1781155840000,-500.0,0.00013698,2]
[424777835,1781155840000,-1689.27,0.00013698,2]
[424777834,1781155840000,-1689.27,0.00013698,2]
[424777837,1781155840000,-1689.27,0.00013698,2]
[424777839,1781155840000,-1689.27,0.00013698,2]
[424777838,1781155840000,-1689.27,0.00013698,2]
[424777840,1781155840000,-1689.27,0.00013698,2]
[424777836,1781155840000,-1689.27,0.00013698,2]
[424777841,1781155840000,-1689.27,0.00013698,2]
[424777843,1781155840000,-500.0,0.00013698,2]
[424777844,1781155840000,-500.0,0.00013698,2]
[424777842,1781155840000,-500.0,0.00013698,2]
[424777845,1781155840000,-500.0,0.00013698,2]
[424777847,1781155840000,-492.8427843,0.00013698,2]
[424777848,1781155840000,-500.0,0.00013698,2]
[424777846,1781155840000,-500.0,0.00013698,2]
[424777851,1781155840000,-500.0,0.00013698,2]
[424777849,1781155840000,-500.0,0.00013698,2]
[424777853,1781155840000,-500.0,0.00013698,2]
[424777855,1781155840000,-500.0,0.00013698,2]
[424777857,1781155840000,-500.0,0.00013698,2]
[424777856,1781155840000,-500.0,0.00013698,2]